[Event "15th Avicenna Open Masters 2018"]
[Site "Avicenna"]
[Date "2018.08.17"]
[Round "1"]
[White "Korevand, Sina"]
[Black "Khodashenas, Mersad"]
[Result "0-1"]
[ECO "A45"]
[WhiteElo "2203"]
[BlackElo "2440"]
[Annotator "NA"]
[PlyCount "80"]
[EventDate "2018.08.17"]
[EventType "swiss"]
[EventCountry "IRI"]
[SourceTitle "playchess.com"]
[Source "ChessBase"]
[SourceQuality "1"]
[TimeControl "5400+30"]

1. d4 {[%emt 0:00:00]} Nf6 {[%emt 0:00:00]} 2. Bf4 {[%emt 0:00:00]} c5 {[%emt 0:00:00]} 3. d5 {[%emt 0:02:04]} Qb6 {[%emt 0:00:00]} 4. Nc3 {[%emt 0:00:31]} Qxb2 {[%emt 0:01:23]} 5. Bd2 {[%emt 0:00:31]} Qb6 {[%emt 0:03:15]} 6. e4 {[%emt 0:00:09]} d6 {[%emt 0:00:41]} 7. f4 {[%emt 0:00:37]} e5 {[%emt 0:10:06]} 8. dxe6 {[%emt 0:12:31]} Bxe6 {[%emt 0:00:42]} 9. Nf3 {[%emt 0:09:27]} Nc6 {[%emt 0:00:48]} 10. f5 {[%emt 0:02:40]} Bc8 {[%emt 0:07:04]} 11. Rb1 {[%emt 0:02:13]} Qd8 {[%emt 0:00:25]} 12. Bc4 {[%emt 0:05:11]} Be7 {[%emt 0:04:56]} 13. O-O {[%emt 0:04:35]} O-O {[%emt 0:11:26]} 14. Bf4 {[%emt 0:10:29]} a6 {[%emt 0:00:56]} 15. a4 {[%emt 0:03:38]} Nb4 {[%emt 0:04:12]} 16. Rf2 {[%emt 0:05:30]} b5 {[%emt 0:09:41]} 17. axb5 {[%emt 0:03:20]} axb5 {[%emt 0:00:15]} 18. Bxb5 {[%emt 0:01:05]} Ra3 {[%emt 0:02:10]} 19. Rb3 {[%emt 0:03:45]} Qa5 {[%emt 0:00:42]} 20. Nd2 {[%emt 0:04:45]} Ra1 {[%emt 0:03:17]} 21. Rb1 {[%emt 0:00:15]} Rxb1 {[%emt 0:00:58]} 22. Qxb1 {[%emt 0:00:07]} d5 {[%emt 0:02:58]} 23. exd5 {[%emt 0:03:44]} Nfxd5 {[%emt 0:00:25]} 24. Nxd5 {[%emt 0:00:26]} Nxd5 {[%emt 0:00:05]} 25. Nc4 {[%emt 0:03:55]} Qa7 {[%emt 0:00:14]} 26. Be5 {[%emt 0:06:27]} Bf6 {[%emt 0:07:19]} 27. Qe1 {[%emt 0:04:33]} Qb7 {[%emt 0:18:37]} 28. Ba4 {[%emt 0:09:09]} Bxe5 {[%emt 0:04:17]} 29. Qxe5 {[%emt 0:01:52]} Nf6 {[%emt 0:00:00]} 30. Re2 {[%emt 0:00:50]} Qb1+ {[%emt 0:00:05]} 31. Re1 {[%emt 0:00:11]} Qb4 {[%emt 0:00:01]} 32. Bb3 {[%emt 0:00:47]} Ba6 {[%emt 0:03:10]} 33. Nd6 {[%emt 0:00:41]} c4 {[%emt 0:00:19]} 34. Ba2 {[%emt 0:00:24]} Qb6+ {[%emt 0:04:18]} 35. Kf1 {[%emt 0:00:18]} Rd8 {[%emt 0:01:35]} 36. Nxc4 {[%emt 0:00:47]} Qc6 {[%emt 0:01:05]} 37. Qf4 {[%emt 0:00:26]} Rc8 {[%emt 0:00:30]} 38. Rb1 {[%emt 0:00:34]} Nd5 {[%emt 0:00:32]} 39. Qd4 {[%emt 0:00:12]} Bxc4+ {[%emt 0:00:15]} 40. Bxc4 {[%emt 0:00:22]} Qxc4+ {[%emt 0:00:01] Qd1} 0-1

[Event "15th Avicenna Open Masters 2018"]
[Site "Avicenna"]
[Date "2018.08.17"]
[Round "1"]
[White "Akhgari, Reza"]
[Black "Czebe, Attila"]
[Result "0-1"]
[ECO "A41"]
[WhiteElo "2195"]
[BlackElo "2411"]
[Annotator "NA"]
[PlyCount "164"]
[EventDate "2018.08.17"]
[EventType "swiss"]
[EventCountry "IRI"]
[SourceTitle "playchess.com"]
[Source "ChessBase"]
[SourceQuality "1"]
[TimeControl "5400+30"]

1. d4 {[%emt 0:00:00]} d6 {[%emt 0:00:00]} 2. e4 {[%emt 0:01:08]} g6 {[%emt 0:00:00]} 3. Be3 {[%emt 0:01:45]} Nd7 {[%emt 0:02:54]} 4. Nf3 {[%emt 0:00:32]} Ngf6 {[%emt 0:00:21]} 5. Nbd2 {[%emt 0:00:57]} Bg7 {[%emt 0:01:02]} 6. h3 {[%emt 0:01:14]} O-O {[%emt 0:01:33]} 7. Bc4 c5 {[%emt 0:00:12]} 8. c3 {[%emt 0:01:40]} cxd4 {[%emt 0:00:13]} 9. cxd4 d5 {[%emt 0:00:06]} 10. exd5 {[%emt 0:05:45]} Nb6 {[%emt 0:03:08]} 11. Bb3 {[%emt 0:00:22]} Nbxd5 12. O-O Nxe3 {[%emt 0:01:36]} 13. fxe3 {[%emt 0:00:32]} b6 14. Ne5 {[%emt 0:04:53]} Bb7 {[%emt 0:00:48]} 15. Ndf3 Bd5 {[%emt 0:16:32]} 16. Rc1 {[%emt 0:10:46]} Bh6 {[%emt 0:01:52]} 17. Re1 {[%emt 0:00:20]} Rc8 {[%emt 0:01:44]} 18. Rxc8 {[%emt 0:05:20]} Qxc8 {[%emt 0:00:06]} 19. Bxd5 {[%emt 0:00:34]} Nxd5 {[%emt 0:00:06]} 20. e4 {[%emt 0:01:19]} Nb4 {[%emt 0:00:30]} 21. Qb3 {[%emt 0:00:30]} Nc6 {[%emt 0:00:30]} 22. Rf1 {[%emt 0:00:30]} Bf4 {[%emt 0:00:30]} 23. Nxc6 {[%emt 0:00:30]} Qxc6 {[%emt 0:00:30]} 24. g3 {[%emt 0:00:30]} Bb8 {[%emt 0:00:30]} 25. d5 {[%emt 0:00:30]} Qd7 {[%emt 0:00:30]} 26. Kg2 {[%emt 0:00:30]} e6 {[%emt 0:00:30]} 27. dxe6 {[%emt 0:00:30]} fxe6 {[%emt 0:00:30]} 28. a4 {[%emt 0:00:30]} Qd6 {[%emt 0:00:30]} 29. e5 {[%emt 0:00:30]} Qc6 {[%emt 0:00:30]} 30. Qb5 {[%emt 0:00:30]} Qxb5 {[%emt 0:00:30]} 31. axb5 {[%emt 0:00:30]} Rd8 {[%emt 0:00:30]} 32. Rc1 {[%emt 0:00:30]} Kf7 {[%emt 0:00:30]} 33. Ng5+ {[%emt 0:00:30]} Ke7 {[%emt 0:00:30]} 34. Rc6 {[%emt 0:00:30]} Rd2+ {[%emt 0:00:30]} 35. Kf3 {[%emt 0:00:30]} Rxb2 {[%emt 0:00:30]} 36. Rxe6+ {[%emt 0:00:30]} Kd7 {[%emt 0:00:30]} 37. Rf6 {[%emt 0:00:30]} Bxe5 {[%emt 0:00:30]} 38. Rf7+ {[%emt 0:00:30]} Kd6 {[%emt 0:00:30]} 39. Rxa7 {[%emt 0:00:30]} Rb3+ {[%emt 0:00:30]} 40. Ke2 {[%emt 0:00:30]} h6 {[%emt 0:00:30]} 41. Nf7+ {[%emt 0:00:30]} Ke6 {[%emt 0:00:30]} 42. Nxe5 {[%emt 0:00:30]} Kxe5 {[%emt 0:00:30]} 43. Re7+ {[%emt 0:00:30] Ke6 Ra7 [%clk 0:16:45] Ke5 [%clk 0:20:41] Re7+ [%clk 0:13:51]} Kf6 {[%emt 0:51:00]} 44. Rh7 {[%emt 0:49:14]} Rxg3 {[%emt 0:05:45]} 45. Rxh6 Rb3 {[%emt 0:00:01]} 46. Rh8 {[%emt 0:00:41]} Rxb5 {[%emt 0:02:21]} 47. Rb8 {[%emt 0:03:16]} Kg5 48. Kf3 {[%emt 0:00:01]} Rb3+ {[%emt 0:02:25]} 49. Kg2 {[%emt 0:00:10]} Rb4 50. Kg3 Rb3+ {[%emt 0:02:40]} 51. Kg2 {[%emt 0:00:31]} Kf6 {[%emt 0:00:04]} 52. Rb7 {[%emt 0:00:15]} g5 {[%emt 0:00:08]} 53. Rb8 {[%emt 0:00:10]} Ke5 {[%emt 0:00:30]} 54. Rg8 {[%emt 0:00:19]} Kf4 {[%emt 0:00:05]} 55. Rf8+ {[%emt 0:00:04]} Ke4 {[%emt 0:00:02]} 56. Rg8 Kf5 {[%emt 0:02:36]} 57. Rf8+ {[%emt 0:00:19]} Ke6 {[%emt 0:00:13]} 58. Rg8 {[%emt 0:00:05]} Kf6 {[%emt 0:00:02]} 59. Rb8 Kf7 {[%emt 0:00:46]} 60. Rb7+ {[%emt 0:00:11]} Ke6 {[%emt 0:00:06]} 61. Rg7 Kf6 {[%emt 0:00:48]} 62. Rb7 {[%emt 0:00:42]} b5 63. Rb8 {[%emt 0:00:13]} b4 {[%emt 0:00:09]} 64. Rb5 {[%emt 0:00:10]} Kg6 {[%emt 0:00:08]} 65. Kh2 {[%emt 0:00:24]} Kh5 66. Rb8 {[%emt 0:00:12]} Rb1 {[%emt 0:01:44]} 67. Rb6 g4 68. hxg4+ {[%emt 0:01:04]} Kxg4 {[%emt 0:00:15]} 69. Kg2 {[%emt 0:00:11]} Rb2+ {[%emt 0:03:18]} 70. Kf1 {[%emt 0:00:45]} Kf3 {[%emt 0:00:07]} 71. Ke1 {[%emt 0:00:09]} Ke3 {[%emt 0:00:01]} 72. Kd1 {[%emt 0:00:07]} Kd3 {[%emt 0:00:00]} 73. Kc1 {[%emt 0:00:08]} Kc3 {[%emt 0:00:01]} 74. Rh6 {[%emt 0:00:23]} Kb3 {[%emt 0:00:02]} 75. Rh3+ {[%emt 0:03:07]} Ka2 {[%emt 0:00:05]} 76. Rh8 {[%emt 0:00:03]} Rb1+ {[%emt 0:00:12]} 77. Kd2 {[%emt 0:00:50]} Kb2 {[%emt 0:00:09]} 78. Rh2 {[%emt 0:00:09]} Rc1 {[%emt 0:00:26]} 79. Kd3+ {[%emt 0:00:09]} Kb3 {[%emt 0:00:01]} 80. Rh8 {[%emt 0:00:15]} Rd1+ {[%emt 0:00:05]} 81. Ke2 {[%emt 0:00:05]} Rd7 {[%emt 0:00:03]} 82. Ke1 Kc4 0-1

[Event "15th Avicenna Open Masters 2018"]
[Site "Avicenna"]
[Date "2018.08.18"]
[Round "2"]
[White "Tsomaia, Nikoloz"]
[Black "Tahbaz, Arash"]
[Result "1-0"]
[ECO "B01"]
[WhiteElo "2266"]
[BlackElo "2449"]
[Annotator "RC"]
[PlyCount "101"]
[EventDate "2018.08.17"]
[EventType "swiss"]
[EventCountry "IRI"]
[SourceTitle "playchess.com"]
[Source "ChessBase"]
[SourceQuality "1"]
[TimeControl "5400+30"]

1. e4 {[%emt 0:00:00]} d5 {[%emt 0:02:26]} 2. exd5 {[%emt 0:00:00]} Qxd5 {[%emt 0:00:03]} 3. Nc3 {[%emt 0:00:00]} Qa5 {[%emt 0:00:02]} 4. d4 {[%emt 0:00:17]} Nf6 {[%emt 0:00:03]} 5. Bd3 {[%emt 0:09:41]} Nc6 {[%emt 0:10:53]} 6. Nge2 {[%emt 0:05:54]} Bf5 {[%emt 0:00:36]} 7. Bb5 {[%emt 0:07:59]} O-O-O {[%emt 0:02:26]} 8. Bxc6 {[%emt 0:00:36]} bxc6 {[%emt 0:00:01]} 9. Bd2 {[%emt 0:00:16]} Qa6 {[%emt 0:00:22]} 10. O-O {[%emt 0:01:01]} e6 {[%emt 0:00:06]} 11. Qc1 {[%emt 0:02:33]} h5 {[%emt 0:02:22]} 12. Re1 {[%emt 0:12:18]} h4 {[%emt 0:00:04]} 13. h3 {[%emt 0:00:03]} Be7 {[%emt 0:08:56]} 14. a3 {[%emt 0:10:16]} Nh5 {[%emt 0:04:47]} 15. Nd1 {[%emt 0:03:30]} g5 {[%emt 0:04:38]} 16. Ne3 {[%emt 0:00:28]} Bh7 {[%emt 0:00:55]} 17. Bb4 {[%emt 0:02:07]} c5 {[%emt 0:00:53]} 18. Bxc5 {[%emt 0:07:22]} Bxc5 {[%emt 0:00:05]} 19. dxc5 {[%emt 0:00:02]} f5 {[%emt 0:00:55]} 20. c4 {[%emt 0:07:15]} g4 {[%emt 0:06:59]} 21. hxg4 {[%emt 0:02:51]} fxg4 {[%emt 0:00:03]} 22. Qc3 {[%emt 0:01:11]} h3 {[%emt 0:03:23]} 23. Rad1 {[%emt 0:00:11]} Rdf8 {[%emt 0:10:01]} 24. Qe5 {[%emt 0:02:46]} hxg2 {[%emt 0:00:15]} 25. b4 {[%emt 0:08:50]} Qc6 {[%emt 0:06:25]} 26. Nd4 {[%emt 0:02:45]} Qe4 {[%emt 0:01:15]} 27. Nxg2 {[%emt 0:01:20]} Qxe5 {[%emt 0:12:28]} 28. Rxe5 {[%emt 0:00:02]} Nf4 {[%emt 0:00:01]} 29. Nxf4 {[%emt 0:01:14]} Rxf4 {[%emt 0:00:04]} 30. Nxe6 {[%emt 0:03:35]} Re4 {[%emt 0:01:11]} 31. Re1 {[%emt 0:00:02]} Rxe1+ {[%emt 0:06:23]} 32. Rxe1 {[%emt 0:00:01]} Bd3 {[%emt 0:00:01]} 33. Nd4 {[%emt 0:01:06]} Bxc4 {[%emt 0:00:17]} 34. Nc6 {[%emt 0:00:42]} a6 {[%emt 0:00:30]} 35. Re4 {[%emt 0:00:40]} Ba2 36. Rxg4 Kd7 37. Nd4 {[%emt 0:02:03]} Re8 {[%emt 0:01:35]} 38. Rg7+ {[%emt 0:01:30]} Kd8 {[%emt 0:00:03]} 39. c6 {[%emt 0:01:10]} Re1+ {[%emt 0:00:46]} 40. Kh2 {[%emt 0:00:11]} Kc8 {[%emt 0:00:24]} 41. b5 {[%emt 0:01:23]} Bd5 {[%emt 0:01:21]} 42. Rd7 {[%emt 0:01:07]} Bc4 {[%emt 0:00:01]} 43. b6 {[%emt 0:00:31]} cxb6 {[%emt 0:00:18]} 44. Nf5 {[%emt 0:00:06]} Re6 {[%emt 0:00:59]} 45. Ne7+ {[%emt 0:00:30]} Rxe7 {[%emt 0:00:01]} 46. Rxe7 {[%emt 0:00:05]} a5 {[%emt 0:01:29]} 47. Rb7 {[%emt 0:00:27]} b5 {[%emt 0:00:01]} 48. Kg3 {[%emt 0:00:51]} b4 {[%emt 0:01:38]} 49. axb4 {[%emt 0:00:06]} a4 {[%emt 0:00:03]} 50. b5 {[%emt 0:00:23]} a3 {[%emt 0:00:16]} 51. b6 {[%emt 0:00:15]} 1-0

[Event "15th Avicenna Open Masters 2018"]
[Site "Avicenna"]
[Date "2018.08.18"]
[Round "3"]
[White "Molaei, Mohammadamin"]
[Black "Khoshkalam, Seyed Mehrab"]
[Result "1/2-1/2"]
[ECO "E15"]
[WhiteElo "2377"]
[BlackElo "2182"]
[Annotator "NA"]
[PlyCount "111"]
[EventDate "2018.08.17"]
[EventType "swiss"]
[EventCountry "IRI"]
[SourceTitle "playchess.com"]
[Source "ChessBase"]
[SourceQuality "1"]
[TimeControl "5400+30"]

1. d4 {[%emt 0:00:00]} Nf6 {[%emt 0:10:26]} 2. c4 {[%emt 0:00:00]} e6 {[%emt 0:00:18]} 3. Nf3 {[%emt 0:00:00]} b6 {[%emt 0:00:08]} 4. g3 {[%emt 0:00:08]} Ba6 {[%emt 0:00:12]} 5. b3 {[%emt 0:00:15]} Bb4+ {[%emt 0:00:07]} 6. Bd2 {[%emt 0:00:01]} Be7 {[%emt 0:00:12]} 7. Nc3 {[%emt 0:00:31]} c6 {[%emt 0:00:44]} 8. Bg2 {[%emt 0:01:37]} d5 {[%emt 0:00:30]} 9. cxd5 {[%emt 0:03:03]} cxd5 {[%emt 0:00:25]} 10. b4 {[%emt 0:00:29]} Nbd7 {[%emt 0:02:37]} 11. b5 {[%emt 0:00:07]} Bb7 {[%emt 0:00:06]} 12. O-O {[%emt 0:00:40]} O-O {[%emt 0:00:40]} 13. Qb3 {[%emt 0:00:25]} Ne4 {[%emt 0:05:15]} 14. Rfc1 {[%emt 0:01:26]} Nd6 {[%emt 0:02:13]} 15. Nd1 {[%emt 0:00:58]} a5 {[%emt 0:02:53]} 16. Nb2 {[%emt 0:03:17]} Ne4 {[%emt 0:08:59]} 17. Bf4 {[%emt 0:00:21]} Bd6 {[%emt 0:00:09]} 18. Bxd6 {[%emt 0:08:47]} Nxd6 {[%emt 0:00:18]} 19. Rc2 {[%emt 0:00:11]} Rc8 {[%emt 0:01:39]} 20. Rac1 {[%emt 0:00:15]} Rxc2 {[%emt 0:02:17]} 21. Rxc2 {[%emt 0:00:30]} Qb8 {[%emt 0:00:15]} 22. Nd3 {[%emt 0:06:28]} Rc8 {[%emt 0:03:32]} 23. a4 {[%emt 0:15:50]} Rxc2 {[%emt 0:00:54]} 24. Qxc2 {[%emt 0:00:06]} Qc8 {[%emt 0:00:16]} 25. Qxc8+ {[%emt 0:00:55]} Bxc8 {[%emt 0:00:17]} 26. Nd2 {[%emt 0:02:07]} Kf8 {[%emt 0:01:29]} 27. Kf1 {[%emt 0:00:38]} Ke7 {[%emt 0:00:14]} 28. e3 {[%emt 0:00:31]} f6 {[%emt 0:00:23]} 29. Ke2 {[%emt 0:00:14]} Nf8 {[%emt 0:00:49]} 30. h4 {[%emt 0:00:31]} h6 {[%emt 0:01:33]} 31. h5 {[%emt 0:01:35]} Bb7 {[%emt 0:01:51]} 32. Nf4 {[%emt 0:01:12]} Kf7 {[%emt 0:00:39]} 33. Kd3 {[%emt 0:00:44]} f5 {[%emt 0:02:00]} 34. f3 {[%emt 0:03:03]} g5 {[%emt 0:00:47]} 35. hxg6+ {[%emt 0:00:21]} Nxg6 {[%emt 0:00:06]} 36. Nxg6 {[%emt 0:02:16]} Kxg6 {[%emt 0:00:02]} 37. e4 {[%emt 0:06:58]} Kg5 {[%emt 0:04:06]} 38. exf5 {[%emt 0:05:27]} Nxf5 {[%emt 0:02:06]} 39. Nf1 {[%emt 0:00:09]} Bc8 {[%emt 0:02:31]} 40. Bh3 {[%emt 0:00:46]} Nxg3 {[%emt 0:03:25]} 41. Nxg3 {[%emt 0:01:26]} Kh4 {[%emt 0:00:10]} 42. Bxe6 {[%emt 0:02:10]} Bxe6 {[%emt 0:00:09]} 43. Ne2 {[%emt 0:00:06]} Kg5 {[%emt 0:01:19]} 44. Ke3 {[%emt 0:00:16]} h5 {[%emt 0:01:06]} 45. Nf4 {[%emt 0:00:37]} Bf7 {[%emt 0:00:06]} 46. Nd3 {[%emt 0:00:47]} h4 {[%emt 0:00:45]} 47. Nc5 {[%emt 0:04:12]} h3 {[%emt 0:07:12]} 48. Kf2 {[%emt 0:00:04]} Kf4 {[%emt 0:02:11]} 49. Nd3+ {[%emt 0:02:20]} Kg5 {[%emt 0:01:13]} 50. Kg3 {[%emt 0:01:24]} Bg6 {[%emt 0:00:31]} 51. Nc5 {[%emt 0:02:00]} Bf5 {[%emt 0:00:53]} 52. Na6 {[%emt 0:00:37]} Bc2 {[%emt 0:00:59]} 53. Nc7 {[%emt 0:09:35]} Bxa4 {[%emt 0:00:26]} 54. Nxd5 {[%emt 0:00:02]} Bxb5 {[%emt 0:00:10]} 55. Nxb6 {[%emt 0:00:02]} a4 {[%emt 0:00:11]} 56. Nxa4 {[%emt 0:00:14]} 1/2-1/2

[Event "15th Avicenna Open Masters 2018"]
[Site "Avicenna"]
[Date "2018.08.18"]
[Round "3"]
[White "Hosseinzadeh, Nima"]
[Black "Matinian, Nikita"]
[Result "1/2-1/2"]
[ECO "C95"]
[WhiteElo "2299"]
[BlackElo "2506"]
[Annotator "ChessBase"]
[PlyCount "105"]
[EventDate "2018.08.17"]
[EventType "swiss"]
[EventCountry "IRI"]
[SourceTitle "playchess.com"]
[Source "ChessBase"]
[SourceQuality "1"]
[TimeControl "5400+30"]

1. e4 {[%emt 0:00:00]} e5 {[%emt 0:00:00]} 2. Nf3 {[%emt 0:00:22]} Nc6 {[%emt 0:00:00]} 3. Bb5 {[%emt 0:00:04]} a6 {[%emt 0:00:00]} 4. Ba4 {[%emt 0:00:08]} Nf6 {[%emt 0:00:00]} 5. O-O {[%emt 0:00:05]} Be7 {[%emt 0:00:00]} 6. Re1 {[%emt 0:00:04]} b5 {[%emt 0:00:06]} 7. Bb3 {[%emt 0:00:05]} d6 {[%emt 0:00:09]} 8. c3 {[%emt 0:00:07]} O-O {[%emt 0:00:06]} 9. h3 {[%emt 0:00:03]} Nb8 {[%emt 0:00:27]} 10. d4 {[%emt 0:00:06]} Nbd7 {[%emt 0:00:06]} 11. Nbd2 {[%emt 0:00:08]} Bb7 {[%emt 0:00:07]} 12. Bc2 {[%emt 0:00:06]} Re8 {[%emt 0:00:11]} 13. Nf1 {[%emt 0:00:06]} Bf8 {[%emt 0:00:10]} 14. Ng3 {[%emt 0:00:04]} g6 {[%emt 0:00:06]} 15. a4 {[%emt 0:00:34]} c6 {[%emt 0:00:54]} 16. Be3 {[%emt 0:00:49]} Qc7 {[%emt 0:02:30]} 17. Bd3 {[%emt 0:01:52]} Bg7 {[%emt 0:09:26]} 18. Qd2 {[%emt 0:01:44]} Nf8 {[%emt 0:00:56]} 19. b4 {[%emt 0:07:19]} Ne6 {[%emt 0:00:54]} 20. a5 {[%emt 0:17:37]} Nd7 {[%emt 0:08:12]} 21. Rad1 {[%emt 0:03:49]} Rad8 {[%emt 0:02:27]} 22. Qc1 {[%emt 0:11:13]} c5 {[%emt 0:01:55]} 23. d5 {[%emt 0:18:14]} Nf4 {[%emt 0:03:35]} 24. Bf1 {[%emt 0:00:03]} Rc8 {[%emt 0:03:42]} 25. Qd2 {[%emt 0:01:12]} Qd8 {[%emt 0:09:18]} 26. Rc1 {[%emt 0:00:20]} Qe7 {[%emt 0:00:54]} 27. c4 {[%emt 0:05:03]} bxc4 {[%emt 0:00:52]} 28. Rxc4 {[%emt 0:00:34]} h5 {[%emt 0:10:53]} 29. bxc5 {[%emt 0:01:38]} Nxc5 {[%emt 0:01:10]} 30. Bxc5 {[%emt 0:01:28]} dxc5 {[%emt 0:00:04]} 31. h4 {[%emt 0:03:47]} Red8 {[%emt 0:00:49]} 32. Qc2 {[%emt 0:02:52]} Bf6 {[%emt 0:03:19]} 33. Nh1 {[%emt 0:02:54]} Rc7 {[%emt 0:03:54]} 34. Rc1 {[%emt 0:06:38]} Rdc8 {[%emt 0:04:25]} 35. Rb1 {[%emt 0:00:01]} Rd8 {[%emt 0:04:12]} 36. g3 {[%emt 0:01:51]} Nxd5 {[%emt 0:00:19]} 37. Rxb7 {[%emt 0:00:25]} Rxb7 {[%emt 0:00:06]} 38. exd5 {[%emt 0:00:01]} Rxd5 {[%emt 0:00:26]} 39. g4 {[%emt 0:00:27]} Qd7 {[%emt 0:01:22]} 40. Ng3 {[%emt 0:08:20]} hxg4 {[%emt 0:00:53]} 41. Nh2 {[%emt 0:00:02]} Rd4 {[%emt 0:03:23]} 42. h5 {[%emt 0:04:21]} Kg7 {[%emt 0:02:27]} 43. hxg6 {[%emt 0:00:26]} fxg6 {[%emt 0:00:04]} 44. Rxc5 {[%emt 0:00:48]} Bh4 {[%emt 0:01:27]} 45. Bxa6 {[%emt 0:02:53]} Bxg3 {[%emt 0:06:14]} 46. Bxb7 {[%emt 0:01:07]} Bxh2+ {[%emt 0:00:14]} 47. Kxh2 {[%emt 0:00:50]} g3+ {[%emt 0:00:04]} 48. fxg3 {[%emt 0:00:38]} Rd2+ {[%emt 0:00:04]} 49. Bg2 {[%emt 0:00:21]} Rxc2 {[%emt 0:00:08]} 50. Rxc2 {[%emt 0:00:01]} Qa4 {[%emt 0:01:22]} 51. Rc7+ {[%emt 0:00:02]} Kh6 {[%emt 0:00:22]} 52. Ra7 {[%emt 0:00:18]} e4 {[%emt 0:01:06]} 53. Re7 {[%emt 0:00:22]} 1/2-1/2

[Event "15th Avicenna Open Masters 2018"]
[Site "Avicenna"]
[Date "2018.08.18"]
[Round "3"]
[White "Veisi, Bardia"]
[Black "Pavlov, Sergey"]
[Result "1/2-1/2"]
[ECO "B33"]
[WhiteElo "2273"]
[BlackElo "2496"]
[Annotator "RC"]
[PlyCount "71"]
[EventDate "2018.08.17"]
[EventType "swiss"]
[EventCountry "IRI"]
[SourceTitle "playchess.com"]
[Source "ChessBase"]
[SourceQuality "1"]
[TimeControl "5400+30"]

1. e4 {[%emt 0:00:11]} c5 {[%emt 0:01:12]} 2. Nf3 {[%emt 0:00:08]} e6 {[%emt 0:01:07]} 3. d4 {[%emt 0:00:06]} cxd4 {[%emt 0:00:06]} 4. Nxd4 {[%emt 0:00:06]} Nf6 {[%emt 0:00:05]} 5. Nc3 {[%emt 0:00:08]} Nc6 {[%emt 0:00:06]} 6. Ndb5 {[%emt 0:00:04]} d6 {[%emt 0:00:20]} 7. Bf4 {[%emt 0:00:07]} e5 {[%emt 0:00:09]} 8. Bg5 {[%emt 0:00:06]} a6 {[%emt 0:00:10]} 9. Na3 {[%emt 0:00:05]} Be6 {[%emt 0:00:17]} 10. Bxf6 {[%emt 0:00:06]} Qxf6 {[%emt 0:00:50]} 11. Nd5 {[%emt 0:02:39]} Qd8 {[%emt 0:04:51]} 12. Nc4 {[%emt 0:00:09]} Be7 {[%emt 0:01:45]} 13. c3 {[%emt 0:04:02]} Rb8 {[%emt 0:03:54]} 14. a4 {[%emt 0:05:46]} Bg5 {[%emt 0:04:12]} 15. a5 {[%emt 0:12:28]} O-O {[%emt 0:01:32]} 16. Be2 {[%emt 0:00:14]} Ne7 {[%emt 0:02:46]} 17. Nxe7+ {[%emt 0:03:19]} Bxe7 {[%emt 0:00:34]} 18. O-O {[%emt 0:02:46]} Qc7 {[%emt 0:02:28]} 19. Qd3 {[%emt 0:09:01]} Qc5 {[%emt 0:13:37]} 20. Rfd1 {[%emt 0:03:23]} f5 {[%emt 0:04:11]} 21. exf5 {[%emt 0:01:13]} Rxf5 {[%emt 0:03:07]} 22. Ne3 {[%emt 0:03:03]} Rf4 {[%emt 0:03:42]} 23. g3 {[%emt 0:07:20]} Rf7 {[%emt 0:01:00]} 24. Bg4 {[%emt 0:04:11]} Bxg4 {[%emt 0:03:05]} 25. Nxg4 {[%emt 0:00:06]} Rbf8 {[%emt 0:03:35]} 26. Rd2 {[%emt 0:04:42]} Bg5 {[%emt 0:07:21]} 27. Qxd6 {[%emt 0:05:01]} Qc8 {[%emt 0:02:55]} 28. Nxe5 {[%emt 0:00:41]} Rd8 {[%emt 0:01:11]} 29. Nxf7 {[%emt 0:00:06]} Kxf7 {[%emt 0:00:20]} 30. Qxd8 {[%emt 0:07:25]} Bxd8 {[%emt 0:00:14]} 31. Rd5 {[%emt 0:01:30]} Bf6 {[%emt 0:05:21]} 32. Rad1 {[%emt 0:00:31]} Qg4 {[%emt 0:02:08]} 33. R1d2 {[%emt 0:00:44]} Qe4 {[%emt 0:01:20]} 34. h4 {[%emt 0:01:56]} h5 {[%emt 0:05:42]} 35. Kh2 {[%emt 0:03:15]} Be5 {[%emt 0:03:34]} 36. f4 {[%emt 0:00:50]} 1/2-1/2